bitfinex-derivatives/quotes_SOLF0:USTF0_20240906
["timestamp","ask_amount","ask_price","bid_price","bid_amount"]
[1725601846399,23.06,130.35,130.29,11.8765139]
[1725601846695,23.06,130.33,130.29,11.8765139]
[1725601846899,23.06,130.33,130.29,0.0565139]
[1725601847284,23.06,130.33,130.29,11.8765139]
[1725601847493,23.06,130.35,130.29,11.8765139]
[1725601847797,0.28224886,130.34,130.29,11.8765139]
[1725601848394,27.17904886,130.34,130.29,15.7145139]
[1725601848700,23.06,130.34,130.29,15.7145139]
[1725601849499,26.8966,130.35,130.29,15.658]
[1725601849693,26.8966,130.35,130.29,3.838]
[1725601850494,23.06,130.35,130.3,11.82]
[1725601850797,0.05434097,130.33,130.31,0.05265579]
[1725601854500,0.05434097,130.33,130.31,3.89015579]
[1725601857603,0.05434097,130.33,130.32,3.8372]
[1725601858293,0.05434097,130.33,130.31,3.89005579]
[1725601858993,23.11434097,130.33,130.31,0.05265579]
[1725601859404,26.95154097,130.33,130.31,0.05265579]
[1725601859604,34.93434097,130.33,130.31,0.05265579]
[1725601860202,3.8372,130.32,130.31,0.05265579]
[1725601860709,0.05434097,130.33,130.31,0.05265579]
[1725601860910,23.06,130.32,130.31,0.05265579]
[1725601862004,26.8972,130.32,130.31,0.05265579]
[1725601862406,23.06,130.32,130.31,0.05265579]
[1725601863004,11.87434097,130.33,130.31,0.05265579]
[1725601863207,0.05434097,130.33,130.31,0.05265579]
[1725601864311,0.05434097,130.33,130.31,3.89015579]
[1725601864813,0.05434097,130.33,130.31,11.87265579]
[1725601865307,0.05434097,130.33,130.32,3.8372]
[1725601868103,0.05434097,130.33,130.31,15.71005579]
[1725601868914,0.05434097,130.33,130.31,3.89005579]
[1725601870709,0.05434097,130.33,130.31,0.05265579]
[1725601873109,23.11434097,130.33,130.31,0.05265579]
[1725601875215,0.05434097,130.33,130.31,0.05265579]
[1725601875526,0.05434097,130.33,130.31,3.89015579]
[1725601877014,0.05434097,130.33,130.31,0.05265579]
[1725601878923,23.06,130.32,130.31,0.05265579]
[1725601880018,0.05434097,130.33,130.31,0.05265579]
[1725601880718,23.06,130.32,130.31,0.05265579]
[1725601880921,34.88,130.32,130.31,0.05265579]
[1725601882424,23.06,130.32,130.31,0.05265579]
[1725601882929,0.05434097,130.33,130.31,0.05265579]
[1725601883132,0.05434097,130.33,130.31,15.71005579]
[1725601884226,0.05434097,130.33,130.32,3.8372]
[1725601884726,0.05434097,130.33,130.32,15.6572]
[1725601889318,3.8356,130.38,130.34,3.8364]
[1725601889523,3.8356,130.38,130.34,11.82]
[1725601889725,23.06,130.39,130.35,11.82]
[1725601890422,3.8353,130.39,130.36,0.05333957]
[1725601891130,3.835,130.4,130.36,0.05333957]
[1725601891330,26.90642113,130.41,130.36,11.87333957]
[1725601891828,26.8946,130.42,130.36,11.87333957]
[1725601892025,0.2820774,130.41,130.36,11.87333957]
[1725601892222,26.8946,130.42,130.37,3.8356]
[1725601892630,26.8946,130.42,130.36,11.87333957]
[1725601892828,26.8946,130.42,130.36,15.70923957]
[1725601893223,26.8946,130.42,130.36,19.52667084]
[1725601893427,3.8347,130.41,130.36,15.70923957]
[1725601893629,26.8947,130.41,130.36,15.70923957]
[1725601893828,30.66492669,130.41,130.36,15.70923957]
[1725601894028,3.8343,130.42,130.37,3.8357]
[1725601894335,23.06,130.41,130.38,0.04913197]
[1725601894532,30.65830247,130.41,130.38,0.04913197]
[1725601895638,26.82370247,130.41,130.38,0.04913197]
[1725601896235,34.88,130.4,130.38,0.04913197]
[1725601901831,38.7151,130.4,130.38,0.04913197]
[1725601902026,0.2821228,130.39,130.38,0.04913197]
[1725601902243,0.28212208,130.39,130.38,0.04913197]
[1725601902441,34.88,130.4,130.38,0.04913197]
[1725601903141,3.8345,130.42,130.38,0.04913197]
[1725601903337,0.28208607,130.41,130.39,0.0515439]
[1725601903645,26.8941,130.43,130.39,0.0515439]
[1725601903945,0.2820738,130.42,130.39,0.0515439]
[1725601904640,4.1164738,130.42,130.39,0.0515439]
[1725601904842,38.7144,130.42,130.39,0.0515439]
[1725601905031,3.81560336,130.41,130.39,0.0515439]
[1725601905236,23.06,130.4,130.39,0.0515439]
[1725601905735,3.8347,130.41,130.39,0.0515439]
[1725601909247,34.88,130.4,130.39,0.0515439]
[1725601909444,35.16209457,130.4,130.39,0.0515439]
[1725601910046,35.16209563,130.4,130.39,0.0515439]
[1725601910246,35.16210066,130.4,130.39,0.0515439]
[1725601910544,35.16209778,130.4,130.39,0.0515439]
[1725601910750,34.88,130.4,130.39,0.0515439]
[1725601912154,35.16211767,130.4,130.39,0.0515439]
[1725601912850,34.88,130.4,130.39,0.0515439]
[1725601913758,23.06,130.4,130.39,0.0515439]
[1725601915660,30.70042082,130.41,130.39,0.0515439]
[1725601918258,0.28211767,130.4,130.39,0.0515439]
[1725601918454,30.70042082,130.41,130.39,0.0515439]
[1725601920161,0.28211071,130.4,130.39,0.0515439]
[1725601920661,30.70042082,130.41,130.39,0.0515439]
[1725601921669,26.8943,130.42,130.39,0.0515439]
[1725601921873,0.28208418,130.41,130.39,0.0515439]
[1725601922365,26.8943,130.42,130.39,0.0515439]
[1725601922672,0.28208022,130.41,130.39,0.0515439]
[1725601922867,23.34208022,130.41,130.39,0.0515439]
[1725601923071,34.88,130.4,130.39,0.0515439]
[1725601923268,23.06,130.4,130.38,0.04901615]
[1725601923571,23.06,130.4,130.38,0.05584881]
[1725601924364,11.82,130.41,130.38,0.05584881]
[1725601924365,15.6548,130.41,130.38,0.05584881]
[1725601924565,34.88,130.39,130.38,0.05584881]
[1725601924767,38.95202463,130.39,130.18,30.41386398]
[1725601924977,38.95202463,130.39,130.28,11.82]
[1725601924978,11.82,130.34,130.28,11.82]
[1725601925163,11.82,130.36,130.29,14.6136]
[1725601925369,19.50876874,130.37,130.31,15.6574]
[1725601925571,23.06,130.36,130.31,15.6574]
[1725601925771,0.05240831,130.35,130.32,0.05705129]
[1725601927171,26.94890831,130.35,130.32,0.05705129]
[1725601927371,23.11240831,130.35,130.32,0.05705129]
[1725601928271,0.05240831,130.35,130.32,0.05705129]
[1725601928876,23.06,130.34,130.32,0.05705129]
[1725601929971,0.05240831,130.35,130.32,0.05705129]
[1725601930675,0.05240831,130.35,130.33,15.6569]
[1725601933874,0.05240831,130.35,130.33,3.8369]
[1725601934274,0.05240831,130.35,130.32,15.71425129]
[1725601935173,3.88890831,130.35,130.32,11.87705129]
[1725601935575,3.88890831,130.35,130.32,0.05705129]
[1725601936877,0.05240831,130.35,130.33,11.82]
[1725601938273,0.05240831,130.35,130.33,15.6568]
[1725601939082,3.8353,130.39,130.34,11.82]
[1725601939287,3.8353,130.39,130.29,8.0286109]
[1725601939288,3.8353,130.39,130.35,11.82]
[1725601939578,3.8353,130.39,130.35,15.6562]
[1725601940183,3.8353,130.39,130.36,0.05277975]
[1725601940774,23.06,130.4,130.36,0.05277975]
[1725601942478,26.8949,130.4,130.36,0.05277975]
[1725601945287,3.8347,130.41,130.36,3.88887975]
[1725601945591,26.8947,130.41,130.36,15.70887975]
[1725601945787,0.28210033,130.4,130.36,15.70887975]
[1725601946084,26.8947,130.41,130.37,3.8357]
[1725601946085,23.06,130.41,130.37,3.8357]
[1725601946884,26.8946,130.41,130.36,15.70867975]
[1725601947590,26.8946,130.41,130.36,3.88867975]
[1725601947591,23.06,130.4,130.36,3.88867975]
[1725601950289,26.8951,130.4,130.36,0.05277975]
[1725601950785,38.7151,130.4,130.36,0.05277975]
[1725601952481,3.8352,130.39,130.36,0.05277975]
[1725601952886,23.06,130.38,130.36,0.05277975]
[1725601955900,34.88,130.37,130.36,0.05277975]
[1725601956083,34.88,130.37,130.29,16.0016]
[1725601956084,35.16216574,130.37,130.29,16.0016]
[1725601956289,34.88,130.35,130.29,16.0016]
[1725601956796,38.7165,130.35,130.29,16.0016]
[1725601956995,0.05059056,130.33,130.31,0.05174298]
[1725601961283,0.05059056,130.33,130.31,3.88894298]
[1725601963297,0.05059056,130.33,130.32,3.8372]
[1725601963593,3.8358,130.37,130.33,3.8369]
[1725601963897,3.8358,130.37,130.33,15.6569]
[1725601964692,3.8358,130.37,130.34,0.05867831]
[1725601965595,3.8361,130.36,130.34,0.05867831]
[1725601966098,26.8959,130.37,130.34,0.05867831]
[1725601967797,23.06,130.37,130.34,0.05867831]
[1725601970297,3.8356,130.38,130.34,0.05867831]
[1725601970500,26.8956,130.38,130.34,0.05867831]
[1725601971897,23.06,130.38,130.34,0.05867831]
[1725601972703,26.8955,130.38,130.34,0.05867831]
[1725601973205,3.8355,130.38,130.34,0.05867831]
[1725601973503,3.8354,130.39,130.34,3.89517831]
[1725601980207,0.28215519,130.38,130.34,3.89517831]
[1725601981106,4.11765519,130.38,130.34,3.89517831]
[1725601981299,3.8355,130.38,130.34,3.89517831]
[1725601982110,3.8355,130.38,130.34,0.05867831]
[1725601982415,26.8958,130.37,130.34,0.05867831]
[1725601983816,3.88727871,130.41,130.34,11.87867831]
[1725601984004,11.82,130.41,130.34,11.87867831]
[1725601984203,4.02721436,130.4,130.34,11.87867831]
[1725601984404,4.11731658,130.39,130.34,15.71507831]
[1725601984610,11.82,130.39,130.34,0.05867831]
[1725601984814,23.34214252,130.38,130.34,0.05867831]
[1725601985120,23.06,130.36,130.34,0.05867831]
[1725601985308,23.06,130.36,130.34,0.05495524]
[1725601986511,26.8961,130.36,130.34,0.05495524]
[1725601987016,11.82,130.37,130.34,0.05495524]
[1725601987204,38.7159,130.37,130.34,0.05495524]
[1725601988325,3.8361,130.36,130.34,0.05495524]
[1725601991623,38.7159,130.37,130.34,0.05495524]
[1725601992014,34.88,130.37,130.34,0.05495524]
[1725601992317,3.78261647,130.38,130.34,0.05495524]
[1725601992318,26.8964,130.35,130.34,0.05495524]
[1725601992512,23.06,130.35,130.29,2.7936]
[1725601992713,11.82,130.32,130.29,2.7936]
[1725601993021,30.82250017,130.33,130.29,2.7936]
[1725601993212,23.06,130.33,130.29,6.6317]
[1725601993414,0.0577922,130.32,130.3,0.05801524]
[1725601995521,23.06,130.31,130.3,0.05801524]
[1725601998416,26.8975,130.31,130.3,0.05801524]
[1725601998622,23.06,130.31,130.3,0.05801524]
[1725602000122,0.0577922,130.32,130.3,0.05801524]
[1725602004827,23.06,130.31,130.3,0.05801524]
[1725602007632,34.88,130.31,130.3,0.05801524]
[1725602009020,38.7175,130.31,130.3,0.05801524]
[1725602009231,34.88,130.31,130.3,0.05801524]
[1725602017933,38.7175,130.31,130.3,0.05801524]
[1725602020045,3.8381,130.3,130.25,2.7618]
[1725602020345,23.06,130.27,130.25,2.7618]
[1725602020948,23.11101324,130.27,130.25,2.8160137]
[1725602021147,0.05101324,130.27,130.26,3.839]
[1725602021545,0.05101324,130.27,130.25,2.8160137]
[1725602021849,0.05101324,130.27,130.25,6.6552137]
[1725602028762,0.05101324,130.27,130.25,2.8160137]
[1725602029358,0.05101324,130.27,130.25,6.6552137]
[1725602031961,0.05101324,130.27,130.26,3.74663067]
[1725602032155,0.05101324,130.27,130.26,7.58563067]
[1725602033056,0.05101324,130.27,130.26,3.839]
[1725602036769,0.05101324,130.27,130.26,15.659]
[1725602037065,26.8977,130.31,130.27,3.8387]
[1725602037464,3.8378,130.3,130.27,3.8387]
[1725602037968,26.95109345,130.3,130.27,3.88721467]
[1725602038162,23.11329345,130.3,130.27,3.88721467]
[1725602038861,0.05329345,130.3,130.27,15.70721467]
[1725602039062,3.8371,130.33,130.29,3.8381]
[1725602039566,3.8371,130.33,130.28,11.82]
[1725602039866,23.06,130.34,130.29,11.82]
[1725602040070,3.81047162,130.36,130.3,1.3713]
[1725602040256,0.021113,130.33,130.31,11.82]
[1725602040771,0.021113,130.33,130.32,3.8372]
[1725602044864,3.8363,130.36,130.32,3.8372]
[1725602045067,3.8363,130.36,130.33,3.8369]
[1725602045467,26.8959,130.37,130.33,3.8369]
[1725602045668,3.8359,130.37,130.34,0.05309998]
[1725602048663,30.71506192,130.38,130.34,0.05309998]
[1725602052466,3.8358,130.37,130.34,0.05309998]
[1725602053375,26.8958,130.37,130.34,0.05309998]
[1725602054274,23.06,130.37,130.34,0.05309998]
[1725602057479,26.8959,130.37,130.34,0.05309998]
[1725602057886,38.7159,130.37,130.34,0.05309998]
[1725602059372,38.62643118,130.37,130.34,0.05309998]
[1725602065281,42.46223118,130.37,130.34,0.05309998]
[1725602065876,38.7161,130.36,130.34,0.05309998]
[1725602066186,34.88,130.36,130.34,0.05309998]
[1725602066582,23.04,130.37,130.34,0.05309998]
[1725602066781,26.79757231,130.37,130.34,0.05309998]
[1725602067980,23.04,130.37,130.34,0.05309998]
[1725602068181,38.6957,130.38,130.34,3.88969998]
[1725602068477,42.59192931,130.38,130.34,3.88969998]
[1725602072889,23.04,130.41,130.35,3.8363]
[1725602073186,23.32213071,130.4,130.37,0.05169287]
[1725602073381,23.04,130.4,130.37,0.05169287]
[1725602073587,3.75229413,130.41,130.37,3.88729287]
[1725602073783,93.52994847,130.42,130.37,0.05169287]
[1725602074088,0.28207443,130.41,130.37,0.05169287]
[1725602074390,0.28207443,130.41,130.37,3.88729287]
[1725602074594,136.1366488,130.42,130.37,3.88729287]
[1725602075092,3.8349,130.4,130.37,0.05169287]
[1725602075282,23.04,130.39,130.37,0.05169287]
[1725602075477,11.82,130.4,130.37,0.05169287]
[1725602076583,34.86,130.4,130.37,0.05169287]
[1725602077284,38.6949,130.4,130.37,0.05169287]
[1725602077789,23.04,130.41,130.37,3.88749287]
[1725602078091,34.86,130.41,130.37,3.88749287]
[1725602079295,38.6948,130.41,130.37,3.88749287]
[1725602084495,38.6948,130.41,130.37,0.05169287]
[1725602085993,116.56994847,130.42,130.37,0.05169287]
[1725602086196,93.52994847,130.42,130.38,11.82]
[1725602086796,93.52994847,130.42,130.38,15.6553]
[1725602087497,26.8742,130.43,130.39,3.8351]
[1725602087688,30.61536597,130.43,130.4,0.052379]
[1725602087890,26.8742,130.43,130.4,0.052379]
[1725602088087,30.68942187,130.43,130.4,0.052379]
[1725602088290,3.8342,130.43,130.4,0.052379]
[1725602088688,7.76530209,130.43,130.4,0.052379]
[1725602089700,3.8342,130.43,130.4,0.052379]
[1725602089896,7.75877903,130.43,130.4,0.052379]
[1725602090297,3.8342,130.43,130.4,0.052379]
[1725602090497,42.60420529,130.43,130.4,0.052379]
[1725602090797,3.8343,130.42,130.4,0.052379]
[1725602091192,30.69565957,130.42,130.4,0.052379]
[1725602092290,42.51565957,130.42,130.4,0.052379]
[1725602092491,38.6946,130.41,130.4,0.052379]
[1725602098709,26.874,130.44,130.4,0.052379]
[1725602098904,0.28205791,130.43,130.4,0.052379]
[1725602099099,23.04,130.44,130.4,0.052379]
[1725602099304,0.28205132,130.43,130.4,3.887079]
[1725602099709,23.04,130.44,130.4,3.887079]
[1725602101012,3.8336,130.45,130.4,3.887079]
[1725602101213,0.28203687,130.44,130.4,3.887079]
[1725602102306,26.8736,130.45,130.4,3.887079]
[1725602102505,0.28203687,130.44,130.4,3.887079]
[1725602103310,27.15573687,130.44,130.4,0.052379]
[1725602103510,26.8737,130.44,130.4,0.052379]
[1725602103709,0.28203714,130.43,130.4,0.052379]
[1725602105211,4.11603714,130.43,130.4,0.052379]
[1725602105422,26.9383568,130.42,130.4,0.052379]
[1725602107020,30.7729568,130.42,130.4,0.052379]
[1725602107321,30.7729568,130.42,130.19,28.38841333]
[1725602107322,35.14207933,130.41,130.21,53.72960658]
[1725602107623,23.04,130.38,130.33,3.8367]
[1725602108319,0.052379,130.37,130.34,0.0520585]
[1725602109615,3.888179,130.37,130.34,0.0520585]
[1725602111712,0.052379,130.37,130.36,11.82]
[1725602113134,0.052379,130.37,130.36,15.6561]
[1725602114729,0.052379,130.37,130.35,7.85671478]
[1725602114730,0.052379,130.37,130.35,7.9246]
[1725602114929,0.052379,130.37,130.35,19.7446]
[1725602115428,0.052379,130.37,130.35,4.0884]
[1725602116515,0.052379,130.37,130.35,15.9084]
[1725602117131,0.052379,130.37,130.35,19.7447]
[1725602119224,0.052379,130.37,130.35,6.6062]
[1725602119428,0.052379,130.37,130.35,1.3781]
[1725602120335,0.052379,130.37,130.35,5.2144]
[1725602121725,0.052379,130.37,130.36,15.6561]
[1725602123526,0.052379,130.37,130.36,11.82]
[1725602125523,0.052379,130.37,130.35,5.2143]
[1725602132137,23.04,130.44,130.36,11.82]
[1725602132343,11.82,130.46,130.4,11.82]
[1725602132538,0.28200456,130.45,130.35,1.3781]
[1725602132740,4.11560456,130.45,130.4,11.82]
[1725602132935,3.8336,130.45,130.4,11.82]
[1725602133130,26.8736,130.45,130.41,0.05323656]
[1725602133337,3.8332,130.46,130.41,3.88763656]
[1725602133639,0.28200293,130.45,130.41,3.88763656]
[1725602134139,3.8332,130.46,130.41,3.88763656]
[1725602134337,0.28200027,130.45,130.41,3.88763656]
[1725602138144,3.8332,130.46,130.41,3.88763656]
[1725602138344,0.28200028,130.45,130.41,3.88763656]
[1725602139342,3.8332,130.46,130.41,3.88763656]
[1725602139536,0.28199887,130.45,130.41,3.88763656]
[1725602142345,0.28201536,130.44,130.41,3.88763656]
[1725602142549,3.8332,130.46,130.41,3.88763656]
[1725602142753,0.28200155,130.45,130.41,3.88763656]
[1725602146047,0.28200155,130.45,130.42,3.8343]
[1725602146654,34.86,130.47,130.41,0.05323656]
[1725602146655,3.8327,130.48,130.43,3.8338]
[1725602146855,0.28197813,130.47,130.44,0.05076557]
[1725602147744,35.14197813,130.47,130.44,0.05076557]
[1725602147945,0.28197813,130.46,130.44,0.05076557]
[1725602148252,38.97507813,130.46,130.44,0.05076557]
[1725602148549,38.6931,130.46,130.44,0.05076557]
[1725602151147,0.28200483,130.45,130.44,0.05076557]
[1725602151952,0.28200483,130.45,130.41,17.0886]
[1725602151953,12.10200483,130.45,130.37,1.3578]
[1725602152151,34.86,130.39,130.29,5.49763022]
[1725602152454,34.86,130.39,130.31,11.82]
[1725602152649,34.86,130.39,130.33,3.8368]
[1725602152850,3.835,130.4,130.34,11.82]
[1725602153046,0.05076557,130.38,130.36,0.05244715]
[1725602156453,26.95106561,130.37,130.36,0.05244715]
[1725602156656,11.87076557,130.38,130.36,0.05244715]
[1725602156856,15.70646557,130.38,130.36,0.05244715]
[1725602158259,3.88646557,130.38,130.36,0.05244715]
[1725602158455,0.05076557,130.38,130.36,0.05244715]
[1725602161858,15.70636557,130.38,130.36,0.05244715]
[1725602162463,3.88636557,130.38,130.36,0.05244715]
[1725602162959,0.05076557,130.38,130.36,0.05244715]
[1725602165659,11.87076557,130.38,130.36,0.05244715]
[1725602165858,3.88626557,130.38,130.36,0.05244715]
[1725602166154,15.70626557,130.38,130.36,0.05244715]
[1725602169168,3.8358,130.37,130.36,0.05244715]
[1725602169367,15.6558,130.37,130.36,0.05244715]
[1725602169774,38.6958,130.37,130.36,0.05244715]
[1725602172165,15.6558,130.37,130.36,0.05244715]
[1725602172376,3.8358,130.37,130.36,0.05244715]
[1725602174274,38.6958,130.37,130.36,0.05244715]
[1725602174472,38.9779704,130.37,130.36,0.05244715]
[1725602175477,38.97796985,130.37,130.36,0.05244715]
[1725602176476,38.97797118,130.37,130.36,0.05244715]
[1725602180481,38.97797141,130.37,130.36,0.05244715]
[1725602181683,38.97796954,130.37,130.36,0.05244715]
[1725602184084,3.8364,130.35,130.32,1.3824]
[1725602184281,11.82,130.34,130.32,1.3824]
[1725602184775,11.82,130.33,130.3,2.6845]
[1725602184980,11.82,130.33,130.3,2.7415497]
[1725602184981,11.87633596,130.33,130.3,2.7415497]
[1725602185787,34.91633596,130.33,130.3,1.4258497]
[1725602186282,38.75333596,130.33,130.3,1.4258497]
[1725602192090,34.91633596,130.33,130.3,1.4258497]
[1725602196498,23.09633596,130.33,130.3,5.2636497]
[1725602196895,23.09633596,130.33,130.3,1.4258497]
[1725602197097,23.09633596,130.33,130.3,2.7497497]
[1725602197302,23.09633596,130.33,130.3,6.5873497]
[1725602197502,0.05633596,130.33,130.3,6.5873497]
[1725602200211,23.09633596,130.33,130.3,6.5873497]
[1725602203711,26.93353596,130.33,130.3,1.4258497]
[1725602203906,34.91633596,130.33,130.3,1.4258497]
[1725602204500,34.86,130.31,130.3,0.0570497]
[1725602205304,38.6975,130.31,130.3,0.0570497]
[1725602205507,34.86,130.31,130.3,0.0570497]
[1725602205811,38.70972932,130.31,130.3,0.0570497]
[1725602206008,42.54722932,130.31,130.3,0.0570497]
[1725602209205,23.04,130.31,130.3,0.0570497]
[1725602215106,38.6975,130.31,130.3,0.0570497]
[1725602215519,42.56374187,130.31,130.3,0.0570497]
[1725602221622,30.74374187,130.31,130.3,0.0570497]
[1725602221819,42.56374187,130.31,130.3,0.0570497]
[1725602222122,38.6975,130.31,130.3,0.0570497]
[1725602222326,42.58554043,130.31,130.3,0.0570497]
[1725602222525,38.6975,130.31,130.3,0.0570497]
[1725602222821,34.86,130.31,130.3,0.0570497]
[1725602223223,38.6881358,130.31,130.3,0.0570497]
[1725602226329,34.86,130.31,130.3,0.0570497]
[1725602226927,38.74774187,130.31,130.3,0.0570497]
[1725602228522,42.58524187,130.31,130.3,0.0570497]
[1725602230617,34.86,130.31,130.3,0.0570497]
[1725602230816,0.05633596,130.33,130.3,0.0570497]
[1725602231033,23.04,130.32,130.3,0.0570497]
[1725602232229,0.05633596,130.33,130.3,0.0570497]
[1725602232425,23.09633596,130.33,130.3,0.0570497]
[1725602233225,34.86,130.32,130.3,0.0570497]
[1725602239438,34.91633596,130.33,130.3,0.0570497]
[1725602241036,38.75323596,130.33,130.3,0.0570497]
[1725602241533,34.91633596,130.33,130.3,0.0570497]
[1725602242741,38.75343596,130.33,130.3,0.0570497]
[1725602243136,23.04,130.31,130.3,0.0570497]
[1725602243336,26.94403719,130.31,130.3,0.0570497]
[1725602245336,30.78153719,130.31,130.3,0.0570497]
[1725602247851,26.94403719,130.31,130.3,0.0570497]
[1725602248639,38.76403719,130.31,130.3,0.0570497]
[1725602250033,42.60153719,130.31,130.3,0.0570497]
[1725602250346,38.76403719,130.31,130.26,1.4149]
[1725602250545,34.86,130.28,130.26,1.4149]
[1725602251442,34.9186565,130.28,130.26,1.47143351]
[1725602256655,0.0586565,130.28,130.26,1.47143351]
[1725602266956,0.0586565,130.28,130.26,5.31043351]
[1725602267957,0.0586565,130.28,130.26,1.47143351]
[1725602270451,0.0586565,130.28,130.26,5.31043351]
[1725602278864,0.0586565,130.28,130.26,1.47143351]
[1725602280459,0.0586565,130.28,130.26,5.31043351]
[1725602281168,3.8377,130.31,130.27,3.8387]
[1725602281872,34.86,130.33,130.26,13.29143351]
[1725602282055,34.86,130.33,130.26,13.2349]
[1725602282367,0.05071549,130.31,130.29,3.8379]
[1725602282559,0.05071549,130.31,130.28,11.87646711]
[1725602282761,23.04,130.33,130.28,11.87646711]
[1725602282965,23.04,130.33,130.3,3.8378]
[1725602283753,23.08850788,130.33,130.3,3.8378]
[1725602284573,0.04850788,130.33,130.3,3.8378]
[1725602285761,3.88550788,130.33,130.3,3.8378]
[1725602285961,0.04850788,130.33,130.3,3.8378]
[1725602287668,0.04850788,130.33,130.3,5.2253]
[1725602294272,0.04850788,130.33,130.3,6.6259]
[1725602296863,0.04850788,130.33,130.31,3.8375]
[1725602297177,0.04850788,130.33,130.31,3.89527279]
[1725602297475,0.04850788,130.33,130.31,0.05777279]
[1725602298967,11.82,130.32,130.31,0.05777279]
[1725602300268,15.6572,130.32,130.31,0.05777279]
[1725602302877,38.6972,130.32,130.31,0.05777279]
[1725602308580,3.8372,130.32,130.31,0.05777279]
[1725602309782,3.8372,130.32,130.29,1.4441]
[1725602309987,38.6972,130.32,130.27,16.93880014]
[1725602310185,3.8375,130.31,130.27,16.93880014]
[1725602310380,3.8375,130.31,130.27,13.10020014]
[1725602310579,38.774019,130.31,130.27,1.28020014]
[1725602310783,26.8781,130.29,130.19,9.72345502]
[1725602311082,0.05168049,130.25,130.24,3.8394]
[1725602311277,0.05400518,130.26,130.24,3.8394]
[1725602311883,0.05400518,130.26,130.23,15.70934939]
[1725602312086,0.05400518,130.26,130.23,3.88934939]
[1725602312287,0.05400518,130.26,130.23,15.70934939]
[1725602312681,23.09400518,130.26,130.23,0.04954939]
[1725602313883,3.8393,130.25,130.23,0.04954939]
[1725602314886,26.93310518,130.26,130.23,0.04954939]
[1725602316487,34.86,130.25,130.23,0.04954939]
[1725602317386,3.8396,130.24,130.23,0.04954939]
[1725602317588,34.86,130.25,130.23,0.04954939]
[1725602317995,38.6995,130.25,130.23,0.04954939]
[1725602318596,3.8396,130.24,130.23,0.04954939]
[1725602319090,38.6994,130.25,130.23,0.04954939]
[1725602322289,15.6594,130.25,130.23,0.04954939]
[1725602330908,15.6596,130.24,130.23,0.04954939]
[1725602332104,3.8396,130.24,130.23,0.04954939]
[1725602332309,15.6596,130.24,130.23,0.04954939]
[1725602335800,11.82,130.24,130.23,0.04954939]
[1725602345413,11.82,130.25,130.23,0.04954939]
[1725602345609,3.89310518,130.26,130.23,0.04954939]
[1725602345610,15.71310518,130.26,130.23,0.04954939]
[1725602346215,3.89310518,130.26,130.23,0.04954939]
[1725602346519,15.71310518,130.26,130.23,0.04954939]
[1725602352722,0.05400518,130.26,130.23,0.04954939]
[1725602353117,0.05400518,130.26,130.23,1.43544939]
[1725602353529,0.05400518,130.26,130.24,3.8394]
[1725602358422,0.05400518,130.26,130.23,13.25544939]
[1725602358826,0.05400518,130.26,130.24,1.3698]
[1725602359632,0.05400518,130.26,130.25,3.8393]
[1725602360621,15.658,130.3,130.26,3.8388]
[1725602361536,0.0518887,130.29,130.27,0.05249726]
[1725602371639,0.0518887,130.29,130.27,3.89119726]
[1725602373545,0.0518887,130.29,130.27,0.05249726]
[1725602386046,0.0518887,130.29,130.27,3.89119726]
[1725602389449,0.0518887,130.29,130.27,0.05249726]
[1725602390346,11.8718887,130.29,130.27,0.05249726]
[1725602390551,0.0518887,130.29,130.27,0.05249726]
[1725602390940,3.8900887,130.29,130.27,0.05249726]
[1725602393148,0.0518887,130.29,130.27,0.05249726]
[1725602395847,0.0518887,130.29,130.27,3.89109726]
[1725602400261,0.0518887,130.29,130.27,0.05249726]
[1725602402356,0.0518887,130.29,130.27,3.89109726]
[1725602404258,0.0518887,130.29,130.27,0.05249726]
[1725602406464,0.0518887,130.29,130.27,3.89119726]
[1725602407567,0.0518887,130.29,130.27,0.05249726]
[1725602408171,3.8901887,130.29,130.27,0.05249726]
[1725602410269,0.0518887,130.29,130.27,0.05249726]
[1725602410973,0.0518887,130.29,130.27,3.89109726]
[1725602411361,0.0518887,130.29,130.27,15.71109726]
[1725602411562,23.06,130.37,130.28,11.82]
[1725602411763,0.28223694,130.36,130.3,11.82]
[1725602411970,23.06,130.37,130.3,11.82]
[1725602412166,3.8361,130.36,130.32,3.8371]
[1725602412366,34.88,130.38,130.32,15.64811077]